bitfinex-derivatives/quotes_ETHF0:USTF0_20250912
["timestamp","ask_amount","ask_price","bid_price","bid_amount"]
[1757697223293,31.8659,4580.4,4580.3,0.1984]
[1757697223499,32.74831147,4580.4,4580.3,0.5079]
[1757697225194,32.74831147,4580.4,4580.3,0.7061]
[1757697226298,32.74831147,4580.4,4580.3,0.5079]
[1757697226599,32.74831147,4580.4,4580.0,0.1232]
[1757697226600,32.74831147,4580.4,4580.1,0.2849]
[1757697226800,32.1616,4580.4,4580.1,0.2849]
[1757697228302,32.1616,4580.4,4579.6,0.2849]
[1757697233103,32.1616,4580.4,4580.3,0.2075]
[1757697233304,32.3826,4580.4,4580.3,0.6852]
[1757697233815,32.96889511,4580.4,4580.3,0.6852]
[1757697234216,1.29289511,4580.4,4580.3,0.6852]
[1757697234417,1.51389511,4580.4,4580.3,0.6852]
[1757697235011,1.51389511,4580.4,4580.3,0.2849]
[1757697235212,1.51389511,4580.4,4580.1,0.2849]
[1757697235518,0.9276,4580.4,4579.6,0.2849]
[1757697236616,0.0654,4581.1,4580.3,0.4003]
[1757697236810,0.1955,4580.5,4580.4,0.6852]
[1757697237010,0.6913,4580.5,4580.4,0.6852]
[1757697237513,0.3928,4580.5,4580.4,0.6852]
[1757697238118,0.6913,4580.5,4580.4,0.6852]
[1757697239515,0.6913,4580.5,4580.4,0.4924]
[1757697239812,0.7914,4580.5,4580.1,0.3088]
[1757697240417,0.7914,4580.5,4579.6,0.3088]
[1757697241518,0.6913,4580.5,4580.4,0.3088]
[1757697241719,0.3928,4580.5,4580.0,0.1253]
[1757697241913,0.3979,4580.4,4580.3,0.2076]
[1757697242118,0.6964,4580.4,4580.3,0.4092]
[1757697242609,0.6964,4580.4,4580.3,0.718]
[1757697243121,0.2985,4580.9,4580.4,0.3088]
[1757697243322,0.1921,4580.5,4580.4,0.718]
[1757697243623,0.6964,4580.5,4580.4,0.718]
[1757697243816,0.6964,4580.5,4580.4,0.3088]
[1757697244819,0.7965,4580.5,4580.1,0.3088]
[1757697245218,0.7965,4580.5,4580.0,0.1253]
[1757697245417,0.7965,4580.5,4580.1,0.3088]
[1757697245913,0.7965,4580.5,4580.0,0.1253]
[1757697246113,0.7965,4580.5,4580.1,0.3088]
[1757697246319,0.7965,4580.5,4580.0,0.1253]
[1757697246618,0.7965,4580.5,4580.1,0.3088]
[1757697247021,0.7965,4580.5,4580.0,0.1253]
[1757697247218,0.7965,4580.5,4580.1,0.3088]
[1757697247425,0.7965,4580.5,4580.0,0.1253]
[1757697247924,0.7965,4580.5,4580.1,0.3088]
[1757697248124,0.7965,4580.5,4579.5,0.1232]
[1757697248317,0.7965,4580.5,4579.6,0.3088]
[1757697248520,0.7965,4580.5,4579.1,0.3088]
[1757697248818,0.58673486,4580.4,4579.1,0.3088]
[1757697249020,0.51685,4580.4,4579.1,0.3088]
[1757697249219,0.58700939,4580.3,4579.1,0.3088]
[1757697249419,0.2985,4580.2,4579.1,0.3088]
[1757697250019,0.1001,4580.5,4579.1,0.718]
[1757697250020,0.6964,4579.2,4579.1,0.718]
[1757697253626,0.6964,4579.2,4579.1,0.3088]
[1757697254420,0.6964,4579.2,4579.1,0.5164]
[1757697257126,0.6964,4579.2,4578.6,0.3088]
[1757697257425,0.58762531,4579.1,4578.1,0.3088]
[1757697257625,0.6964,4578.2,4578.1,0.3088]
[1757697258024,0.6964,4578.2,4578.1,0.5164]
[1757697259131,0.6964,4578.2,4578.1,0.718]
[1757697261431,0.6964,4578.2,4577.6,0.3088]
[1757697262026,0.6964,4578.2,4578.1,0.2076]
[1757697262233,0.6964,4578.2,4578.1,0.5164]
[1757697262827,0.6964,4578.2,4578.1,0.718]
[1757697263133,0.0655,4578.6,4578.5,0.1253]
[1757697263324,0.0655,4578.6,4578.5,0.8433]
[1757697263524,0.2985,4578.9,4578.5,0.8433]
[1757697263732,0.1921,4578.6,4578.5,0.8433]
[1757697263934,0.6964,4578.6,4578.5,0.8433]
[1757697264133,0.6964,4578.6,4578.5,0.718]
[1757697265529,0.6964,4578.6,4578.5,0.5164]
[1757697266230,0.6964,4578.6,4578.5,0.718]
[1757697266534,0.6964,4578.6,4578.5,0.5164]
[1757697266939,0.6964,4578.6,4578.5,0.3088]
[1757697267432,0.196,4577.7,4577.6,0.3019]
[1757697267635,0.4903,4577.7,4577.1,0.3019]
[1757697267835,0.6905,4577.2,4577.1,0.5101]
[1757697268335,0.1174,4578.0,4577.1,0.5101]
[1757697268533,0.80435978,4577.9,4577.1,0.5101]
[1757697268730,0.58589977,4577.8,4577.1,0.2082]
[1757697268932,0.1174,4578.0,4577.2,0.2082]
[1757697269132,0.80401067,4577.9,4577.0,0.1164]
[1757697269332,0.58530126,4577.8,4577.0,0.1164]
[1757697269537,0.21846001,4577.8,4577.0,0.1164]
[1757697269733,0.21846001,4577.7,4577.1,0.3019]
[1757697269936,0.221,4577.6,4577.5,0.4183]
[1757697270133,0.221,4577.6,4577.5,0.3019]
[1757697270333,4.43946001,4577.6,4577.5,0.3019]
[1757697270735,4.43946001,4577.6,4577.0,0.4183]
[1757697270934,0.221,4577.6,4577.0,0.4183]
[1757697271129,0.21847,4577.5,4576.6,0.3019]
[1757697271333,0.58488023,4577.4,4576.2,0.3019]
[1757697271533,0.58488023,4577.3,4575.8,0.3019]
[1757697271736,0.80338023,4577.3,4575.8,0.3019]
[1757697272040,0.80339023,4577.2,4575.8,0.3019]
[1757697272237,0.58488023,4577.1,4575.8,0.5101]
[1757697272433,0.58488023,4577.0,4575.8,0.5101]
[1757697272634,0.58488023,4576.9,4575.8,0.5101]
[1757697272838,0.221,4576.8,4575.8,0.5101]
[1757697273139,0.221,4576.8,4576.0,0.1164]
[1757697273540,0.221,4576.7,4576.6,0.3991]
[1757697273737,0.221,4576.7,4576.6,0.701]
[1757697274239,0.2183,4577.4,4577.3,0.5101]
[1757697274434,0.4393,4577.4,4577.3,0.701]
[1757697274641,0.2183,4577.4,4577.3,0.701]
[1757697275736,0.221,4578.5,4577.4,0.3019]
[1757697275935,31.5315,4579.0,4578.5,0.5155]
[1757697276141,0.4212,4578.8,4578.7,0.701]
[1757697276341,0.6172,4578.8,4578.7,0.701]
[1757697282543,0.3962,4578.4,4578.1,0.3019]
[1757697282743,0.3962,4578.2,4578.1,0.5101]
[1757697283250,0.3962,4578.2,4578.1,0.701]
[1757697283444,0.2002,4578.2,4578.1,0.701]
[1757697283951,31.8622,4579.0,4578.9,0.701]
[1757697284153,32.66816323,4579.0,4578.9,0.701]
[1757697285648,32.05096323,4579.0,4578.9,0.701]
[1757697285852,31.687,4579.0,4578.9,0.701]
[1757697286246,32.0964,4579.0,4578.9,0.701]
[1757697286445,32.68172101,4579.0,4578.9,0.701]
[1757697286646,31.8872,4579.0,4578.9,0.701]
[1757697287144,31.687,4579.0,4578.9,0.701]
[1757697288153,0.0655,4579.1,4579.0,0.8256]
[1757697288357,0.2865,4579.1,4579.0,0.8256]
[1757697290958,0.0655,4579.1,4579.0,0.8256]
[1757697297164,0.0655,4579.1,4579.0,4.8256]
[1757697297364,0.6241,4579.8,4579.7,0.486]
[1757697297563,0.6241,4579.8,4579.7,0.6929]
[1757697300159,31.6346,4580.6,4579.8,0.2924]
[1757697300361,0.4031,4580.6,4580.5,0.8074]
[1757697300566,0.6241,4580.6,4580.5,0.8074]
[1757697300865,0.4031,4580.6,4580.5,0.8074]
[1757697301064,0.6241,4580.6,4580.5,0.8074]
[1757697302362,0.4221,4580.6,4580.5,0.8074]
[1757697302670,0.2011,4580.6,4580.5,0.8074]
[1757697302872,0.4221,4580.8,4580.7,0.4005]
[1757697303163,0.6241,4580.8,4580.7,0.6929]
[1757697304262,1.20953671,4580.8,4580.7,0.6929]
[1757697305269,1.00759189,4580.8,4580.7,0.6929]
[1757697306975,0.221,4580.8,4580.7,0.6929]
[1757697308569,0.4221,4580.8,4580.7,0.6929]
[1757697308965,0.6241,4580.8,4580.7,0.6929]
[1757697309972,0.0654,4581.0,4580.7,0.4005]
[1757697310181,0.0654,4581.0,4580.9,0.4005]
[1757697310381,0.0654,4581.0,4580.9,0.6929]
[1757697310782,0.2665,4581.0,4580.9,0.6929]
[1757697311382,0.0654,4581.0,4580.9,0.6929]
[1757697314776,0.01185213,4581.3,4581.0,0.4069]
[1757697315081,0.01185213,4581.3,4581.2,0.6929]
[1757697315278,0.21295213,4581.3,4581.2,0.6929]
[1757697315783,0.01185213,4581.3,4581.2,0.6929]
[1757697319981,0.21295213,4581.3,4581.2,0.6929]
[1757697321392,0.01185213,4581.3,4581.2,0.6929]
[1757697321687,0.21295213,4581.3,4581.2,0.6929]
[1757697322294,0.41495213,4581.3,4581.2,0.6929]
[1757697322591,1.00046136,4581.3,4581.2,0.6929]
[1757697322889,1.23646136,4581.3,4581.2,0.6929]
[1757697323793,1.23646136,4581.3,4581.2,0.2924]
[1757697324288,1.23646136,4581.3,4581.2,0.486]
[1757697326096,1.23646136,4581.3,4580.5,0.1145]
[1757697326290,0.4031,4580.7,4580.6,0.6929]
[1757697326490,0.98860923,4580.7,4580.6,0.6929]
[1757697326686,0.78660923,4580.7,4580.6,0.6929]
[1757697326896,0.58550923,4580.7,4580.6,0.6929]
[1757697327089,0.58550923,4581.0,4580.6,0.6929]
[1757697327298,0.58550923,4581.0,4580.7,0.3079]
[1757697327496,0.2006,4580.8,4580.7,0.6966]
[1757697327690,0.78610923,4580.8,4580.7,0.6966]
[1757697327890,0.58550923,4580.8,4580.7,0.6966]
[1757697328090,1.20435355,4581.2,4581.1,0.6966]
[1757697328391,1.44025355,4581.2,4581.1,0.6966]
[1757697328595,1.00785355,4581.2,4581.1,0.6966]
[1757697328895,1.21925355,4581.2,4581.1,0.4991]
[1757697329295,2.39533165,4581.2,4581.1,0.4991]
[1757697329490,2.39533165,4581.2,4581.1,0.6966]
[1757697329491,0.98335355,4581.2,4581.1,0.6966]
[1757697329697,0.58625355,4581.2,4581.1,0.6966]
[1757697333801,0.01185213,4581.3,4581.2,0.3079]
[1757697333995,0.01185213,4581.3,4581.2,0.6966]
[1757697341307,0.40895213,4581.3,4581.2,0.6966]
[1757697342003,0.01185213,4581.3,4581.2,0.6966]
[1757697342199,0.01185213,4581.3,4581.0,0.1186]
[1757697342200,0.21546879,4582.1,4582.0,0.8152]
[1757697342707,0.41196879,4582.1,4582.0,0.8152]
[1757697343004,0.99992177,4582.1,4582.0,0.8152]
[1757697343202,0.80342177,4582.1,4582.0,0.8152]
[1757697346217,1.24772177,4582.1,4582.0,0.8152]
[1757697346895,1.24772177,4582.1,4582.0,0.6177]
[1757697348608,0.99992177,4582.1,4581.6,0.3018]
[1757697348808,0.4144,4581.7,4581.6,0.7003]
[1757697349000,0.58795298,4581.8,4581.6,0.7003]
[1757697349203,0.58795298,4581.7,4581.6,0.7003]
[1757697349603,1.25075298,4581.7,4581.1,0.3018]
[1757697349901,1.00235298,4581.6,4581.0,0.1186]
[1757697350102,0.80995298,4581.5,4581.2,0.3018]
[1757697350302,0.79355298,4581.4,4581.3,0.7003]
[1757697350703,0.58795298,4581.4,4581.3,0.7003]
[1757697350899,0.797754,4581.5,4581.4,0.5087]
[1757697351104,1.003354,4581.5,4581.4,0.5087]
[1757697351411,1.003354,4581.5,4581.4,0.7003]
[1757697351914,0.794554,4581.5,4581.4,0.7003]
[1757697352311,1.003354,4581.5,4581.4,0.7003]
[1757697353516,1.251754,4581.5,4581.4,0.7003]
[1757697356213,1.251754,4581.5,4581.1,0.3018]
[1757697356214,1.317154,4581.5,4581.1,0.3018]
[1757697356414,0.6628,4581.2,4581.1,0.3018]
[1757697356606,1.251754,4581.2,4580.6,0.3018]
[1757697356803,0.3867,4580.7,4580.6,0.5142]
[1757697357420,0.3867,4580.7,4580.6,0.7092]
[1757697358212,0.3867,4580.7,4580.6,0.5142]
[1757697358213,0.6345,4580.7,4580.6,0.5142]
[1757697358414,1.2235092,4580.7,4580.6,0.3108]
[1757697359920,1.2235092,4580.7,4580.6,0.5142]
[1757697360119,0.9757092,4580.7,4580.6,0.5142]
[1757697360423,0.3867,4580.2,4580.0,0.1252]
[1757697360606,0.4698,4580.9,4580.5,0.1203]
[1757697360812,0.3867,4580.9,4580.8,0.7092]
[1757697361111,0.6345,4580.9,4580.8,0.5142]
[1757697361312,1.19740544,4580.9,4580.8,0.5142]
[1757697361624,1.44520544,4580.9,4580.8,0.5142]
[1757697361812,1.19740544,4580.9,4580.8,0.7092]
[1757697366522,0.77980544,4580.9,4580.8,0.7092]
[1757697366720,0.58870544,4580.9,4580.8,0.7092]
[1757697366922,0.3211,4581.4,4581.3,0.7092]
[1757697367226,0.90912805,4581.4,4581.3,0.7092]
[1757697369712,0.77912805,4581.4,4581.3,0.7092]
[1757697369918,0.222,4581.8,4581.3,0.7092]
[1757697370117,0.58793606,4581.7,4581.6,0.7092]
[1757697370631,0.77903606,4581.7,4581.6,0.7092]
[1757697370928,0.97463606,4581.7,4581.6,0.7092]
[1757697372528,1.22243606,4581.7,4581.6,0.5142]
[1757697372827,0.3867,4581.2,4581.1,0.7092]
[1757697373029,0.1911,4581.2,4581.1,0.7092]
[1757697373424,0.2478,4581.8,4581.1,0.7092]
[1757697373724,0.58802179,4581.7,4581.2,0.3108]
[1757697373924,0.6999,4581.7,4581.6,0.5142]
[1757697374121,1.28792245,4581.7,4581.6,0.5142]
[1757697374931,1.28792245,4581.7,4581.0,0.1203]
[1757697375126,0.3867,4581.2,4581.1,0.5142]
[1757697375332,0.3867,4581.2,4581.1,0.7092]
[1757697375627,0.6345,4581.2,4581.1,0.3108]
[1757697375829,0.2478,4581.1,4580.6,0.3108]
[1757697376024,0.2478,4581.1,4580.6,0.5142]
[1757697376025,0.3867,4580.7,4580.6,0.5142]
[1757697376234,0.4131,4581.1,4580.8,0.195]
[1757697376434,0.2478,4580.8,4580.1,0.3108]
[1757697376635,0.1911,4580.2,4580.1,0.7092]
[1757697376837,0.78165312,4580.2,4580.1,0.7092]
[1757697377239,0.97725312,4580.2,4580.1,0.7092]
[1757697377536,1.22505312,4580.2,4580.1,0.7092]
[1757697377734,1.22505312,4580.2,4580.1,0.5142]
[1757697378339,1.22505312,4580.2,4580.1,0.3108]
[1757697378538,1.22505312,4580.2,4579.0,0.1203]
[1757697378744,0.3867,4579.7,4579.6,0.7092]
[1757697378944,1.16128672,4579.7,4579.6,0.7092]
[1757697379249,0.77458672,4579.7,4579.6,0.7092]
[1757697379442,0.59055312,4579.7,4579.6,0.7092]
[1757697379745,0.3867,4580.8,4580.7,0.3984]
[1757697379943,0.77454222,4580.8,4580.7,0.7092]
[1757697380239,1.40904222,4580.8,4580.7,0.7092]
[1757697380450,1.16124222,4580.8,4580.7,0.7092]
[1757697380644,0.96564222,4580.8,4580.7,0.7092]
[1757697381144,0.96564847,4580.8,4580.7,0.7092]
[1757697381346,1.16124847,4580.8,4580.7,0.7092]
[1757697382355,0.77454847,4580.8,4580.7,0.7092]
[1757697383649,0.77456126,4580.8,4580.7,0.7092]
[1757697384049,0.37511491,4580.8,4580.7,0.7092]
[1757697384746,0.57071491,4580.8,4580.7,0.7092]
[1757697385149,0.18401491,4580.8,4580.7,0.7092]
[1757697385345,0.37511491,4580.8,4580.7,0.7092]
[1757697385846,0.18401491,4580.8,4580.7,0.7092]
[1757697386749,0.1911,4580.8,4580.7,0.7092]
[1757697386948,0.3993,4580.8,4580.7,0.7092]
[1757697387846,0.0654,4581.1,4581.0,0.1224]
[1757697388051,0.0654,4581.1,4581.0,0.8412]
[1757697388348,0.39404397,4581.1,4581.0,0.8412]
[1757697388548,0.60224397,4581.1,4581.0,0.8412]
[1757697388751,0.85004397,4581.1,4581.0,0.8412]
[1757697389050,0.60224397,4581.1,4581.0,0.8412]
[1757697389551,0.85004397,4581.1,4581.0,0.8412]
[1757697390146,0.60224397,4581.1,4581.0,0.8412]
[1757697390852,1.44019034,4581.1,4581.0,0.632]
[1757697394360,1.19239034,4581.1,4581.0,0.8412]
[1757697396356,1.44019034,4581.1,4581.0,0.8412]
[1757697396657,1.44019034,4581.1,4581.0,0.3146]
[1757697396857,0.666,4580.6,4580.5,0.3153]
[1757697397056,0.4182,4580.6,4580.5,0.5245]
[1757697397357,0.4182,4580.6,4580.5,0.8391]
[1757697397653,0.21,4580.6,4580.5,0.8391]
[1757697399457,0.4182,4580.6,4580.5,0.8391]
[1757697399651,0.60229383,4580.6,4580.5,0.8391]
[1757697400257,1.19365101,4580.6,4580.5,0.8391]
[1757697401055,0.18409383,4580.6,4580.5,0.8391]
[1757697401260,0.072,4581.3,4581.2,0.4042]
[1757697401454,0.072,4581.3,4581.2,0.7188]
[1757697401754,1.08156071,4581.3,4581.2,0.7188]
[1757697403161,1.00956071,4581.3,4581.2,0.7188]
[1757697403457,0.59136071,4581.3,4581.2,0.7188]
[1757697406561,0.59136071,4581.3,4581.0,0.1224]
[1757697406562,0.40786879,4582.1,4582.0,0.6241]
[1757697406756,0.62886879,4582.1,4582.0,0.6241]
[1757697406957,1.22124285,4582.1,4582.0,0.6241]
[1757697407160,1.46884285,4582.1,4582.0,0.6241]
[1757697408558,1.24784285,4582.1,4582.0,0.6241]
[1757697408758,1.46884285,4582.1,4582.0,0.6241]
[1757697411960,1.22124285,4582.1,4582.0,0.8202]
[1757697413065,1.46884285,4582.1,4582.0,0.8202]
[1757697413458,1.46884285,4582.1,4582.0,0.3078]
[1757697415166,1.46884285,4582.1,4582.0,0.51]
[1757697419170,1.46884285,4582.1,4582.0,0.3078]
[1757697421572,1.22124285,4582.1,4582.0,0.8215]
[1757697421969,1.46894285,4582.1,4582.0,0.8215]
[1757697422270,1.46894285,4582.1,4582.0,0.3078]
[1757697422481,1.46894285,4582.1,4582.0,0.4976]
[1757697422482,1.22124285,4582.1,4582.0,0.4976]
[1757697422671,1.22124285,4582.1,4582.0,0.8215]
[1757697423770,1.46894285,4582.1,4582.0,0.8215]
[1757697423973,1.22124285,4582.1,4582.0,0.8215]
[1757697424370,0.60724285,4582.1,4582.0,0.8215]
[1757697424865,1.24984285,4582.1,4582.0,0.4976]
[1757697425071,1.24984285,4582.1,4582.0,0.3078]
[1757697425461,1.24984285,4582.1,4582.0,0.6183]
[1757697426267,1.24984285,4582.1,4582.0,0.4976]
[1757697426468,1.24984285,4582.1,4582.0,0.3078]
[1757697427674,1.24984285,4582.1,4582.0,0.6183]
[1757697427873,1.24984285,4582.1,4582.0,0.3078]
[1757697428271,1.24984285,4582.1,4582.0,0.4976]
[1757697428471,1.24984285,4582.1,4582.0,0.6183]
[1757697429077,1.47084285,4582.1,4582.0,0.6183]
[1757697431478,0.79944285,4582.1,4582.0,0.8215]
[1757697431679,0.82824285,4582.1,4582.0,0.8215]
[1757697437179,1.02044285,4582.1,4582.0,0.8215]
[1757697437578,0.82824285,4582.1,4582.0,0.8215]
[1757697438482,1.02044285,4582.1,4582.0,0.8215]
[1757697440192,1.47084285,4582.1,4582.0,0.3078]
[1757697440387,1.47084285,4582.1,4582.0,0.6183]
[1757697441088,1.22314285,4582.1,4582.0,0.8215]
[1757697445791,1.00214285,4582.1,4582.0,0.8215]
[1757697445994,1.22314285,4582.1,4582.0,0.8215]
[1757697448701,1.03254285,4582.1,4582.0,0.8215]
[1757697448992,0.60724285,4582.1,4582.0,0.8215]
[1757697449792,0.60724285,4582.1,4582.0,1.03974]
[1757697450795,0.60724285,4582.1,4582.0,0.8215]
[1757697450997,0.81154285,4582.1,4582.0,0.8215]
[1757697451197,1.01844285,4582.1,4582.0,0.8215]
[1757697451398,0.60724285,4582.1,4582.0,0.8215]
[1757697455708,0.60883734,4582.1,4582.0,0.8215]
[1757697459411,0.81313734,4582.1,4582.0,0.8215]
[1757697460712,0.60883734,4582.1,4582.0,0.8215]
[1757697462512,0.01486879,4582.1,4582.0,0.8215]
[1757697464111,0.81303131,4582.1,4582.0,0.8215]
[1757697466811,0.60873131,4582.1,4582.0,0.8215]
[1757697468118,0.81313131,4582.1,4582.0,0.8215]
[1757697468412,0.60873131,4582.1,4582.0,0.8215]
[1757697469611,0.01486879,4582.1,4582.0,0.8215]
[1757697470309,0.01486879,4582.1,4582.0,4.8215]
[1757697470513,0.01486879,4582.1,4582.0,0.8215]
[1757697472013,0.1,4583.0,4582.9,0.7084]
[1757697472314,0.1169,4584.5,4584.4,0.4443]
[1757697472511,0.0654,4585.5,4584.8,0.4066]
[1757697472710,0.1169,4586.5,4585.8,0.4066]
[1757697472711,1.1760781,4586.1,4585.8,0.4066]
[1757697472911,0.4947,4586.0,4585.9,0.6525]
[1757697473107,0.1169,4586.5,4585.9,0.6525]
[1757697473319,0.6932,4586.9,4586.8,0.4066]
[1757697473623,0.4947,4587.4,4587.3,0.4066]
[1757697473920,0.6932,4587.4,4587.3,0.4066]
[1757697474118,0.4947,4587.4,4587.3,0.4066]
[1757697474323,0.2044,4586.6,4586.5,0.4443]
[1757697474519,0.2903,4586.6,4586.5,0.6525]
[1757697474724,0.2903,4587.4,4587.3,0.2459]
[1757697474918,0.2044,4587.8,4587.7,0.4066]
[1757697475216,0.6932,4587.8,4587.7,0.4066]
[1757697475419,0.1169,4587.5,4586.5,0.2459]
[1757697475620,0.2903,4586.6,4586.5,0.6525]
[1757697475921,0.4947,4586.6,4586.5,0.6525]
[1757697476321,0.8101,4586.0,4585.9,0.1984]
[1757697477216,0.2903,4586.0,4585.9,0.6515]
[1757697477417,0.1169,4586.5,4585.9,0.6515]
[1757697477726,0.2843,4586.9,4586.8,0.6572]
[1757697478228,0.4938,4586.9,4586.8,0.6572]
[1757697478526,0.4938,4586.9,4586.8,0.4123]
[1757697478718,0.4938,4586.9,4586.0,0.2449]
[1757697478719,0.7035,4586.9,4586.0,0.2449]
[1757697480426,0.2095,4586.1,4586.0,0.6572]
[1757697480630,0.4938,4586.1,4586.0,0.4123]
[1757697481122,0.1153,4586.5,4586.0,0.4123]
[1757697481323,0.5345,4586.5,4586.4,0.2041]
[1757697481524,0.1169,4587.0,4586.4,0.6572]
[1757697481825,0.4012,4587.5,4587.0,0.2449]
[1757697482126,0.6107,4587.5,4587.4,0.6572]
[1757697482525,0.01238671,4587.9,4587.4,0.6572]
[1757697482723,0.2843,4587.8,4587.4,0.4123]
[1757697482923,0.2843,4587.8,4587.5,0.2449]
[1757697483118,0.4192,4587.8,4587.7,0.4123]
[1757697483830,0.7035,4587.8,4587.7,0.4123]
[1757697485628,0.2095,4586.8,4586.7,0.4123]
[1757697485827,0.4938,4586.8,4586.7,0.4123]
[1757697486015,0.1153,4587.5,4586.7,0.4123]
[1757697486221,0.4192,4586.4,4586.0,0.0659]
[1757697486422,0.4192,4586.4,4586.0,0.3089]
[1757697487132,0.4192,4586.4,4585.6,0.3089]
[1757697487628,0.4192,4584.7,4584.6,0.7212]
[1757697487828,0.1153,4585.5,4584.7,0.3089]
[1757697488022,0.3996,4585.5,4584.7,0.3089]
[1757697488420,0.7035,4585.5,4585.4,0.2041]
[1757697488620,0.2095,4585.5,4585.4,0.7212]
[1757697489131,0.7035,4585.9,4585.8,0.513]
[1757697489930,0.7035,4585.9,4585.1,0.3089]
[1757697490227,0.7035,4585.9,4585.8,0.513]
[1757697490628,0.7035,4585.9,4585.8,0.7212]
[1757697490828,0.7035,4585.9,4585.5,0.1164]
[1757697491024,0.2095,4585.2,4585.1,0.7212]
[1757697491230,0.7035,4585.2,4585.1,0.7212]
[1757697491426,0.4192,4585.2,4585.1,0.7212]
[1757697492235,0.2843,4585.6,4585.1,0.4123]
[1757697492534,0.2095,4585.6,4585.5,0.8376]
[1757697494032,0.4192,4586.4,4586.3,0.7212]
[1757697494235,0.2843,4587.3,4586.6,0.3089]
[1757697494731,0.2095,4586.7,4586.6,0.513]
[1757697494931,0.7035,4586.7,4586.6,0.513]
[1757697495236,0.222,4587.8,4586.7,0.3089]
[1757697495429,0.9211,4587.4,4587.3,0.2041]
[1757697495936,0.9211,4587.4,4587.3,0.7212]
[1757697496332,0.6368,4587.4,4587.3,0.7212]
[1757697496632,0.4271,4587.4,4587.3,0.7212]
[1757697496938,0.2176,4587.4,4587.3,0.7212]
[1757697497631,0.9211,4587.4,4587.3,0.7212]
[1757697498432,0.9211,4587.4,4587.3,0.2041]
[1757697498638,1.48968832,4587.4,4586.4,0.3089]
[1757697498833,0.7035,4586.5,4586.4,0.513]
[1757697499231,0.7035,4586.5,4586.4,0.2041]
[1757697499427,0.2843,4586.4,4586.0,0.3089]
[1757697499735,0.7035,4586.1,4586.0,0.513]
[1757697499936,0.4192,4586.1,4586.0,0.7212]
[1757697500234,0.2843,4586.0,4585.5,0.4253]
[1757697500440,0.2843,4586.0,4585.5,0.8376]
[1757697500441,0.2095,4585.6,4585.5,0.8376]
[1757697500627,0.3996,4586.5,4585.6,0.3089]
[1757697500938,0.2095,4586.5,4586.4,0.7212]
[1757697501139,0.77945862,4586.5,4586.4,0.7212]
[1757697501741,1.27345862,4586.5,4586.4,0.7212]
[1757697501951,0.98915862,4586.5,4586.4,0.7212]
[1757697502238,1.27345862,4586.5,4586.4,0.7212]
[1757697502736,0.77945862,4586.5,4586.4,0.7212]
[1757697503336,1.27345862,4586.5,4586.4,0.513]
[1757697503638,0.56995862,4586.5,4586.4,0.7212]
[1757697503838,0.06995862,4586.5,4586.4,0.7212]
[1757697504036,0.2843,4587.2,4586.6,0.3089]
[1757697504440,0.7035,4587.2,4587.1,0.7212]
[1757697505137,0.2095,4587.2,4587.1,0.7212]
[1757697505339,0.2176,4587.4,4587.2,0.3089]
[1757697505541,0.7035,4587.3,4586.6,0.3089]
[1757697507143,0.7035,4587.3,4586.0,0.1164]
[1757697507441,0.6921,4586.2,4586.1,0.6948]
[1757697507744,0.2867,4586.9,4586.1,0.6948]
[1757697507943,0.2017,4586.2,4586.1,0.6948]
[1757697508143,0.2867,4586.5,4586.1,0.6948]
[1757697508351,0.2867,4586.9,4586.2,0.3065]
[1757697508552,0.0654,4586.8,4586.2,0.3065]
[1757697510045,0.6921,4586.3,4585.6,0.3065]
[1757697510239,0.6921,4586.3,4586.2,0.1913]
[1757697510441,0.4054,4586.3,4586.2,0.6948]
[1757697510641,0.3521,4586.8,4586.7,0.1913]
[1757697510946,0.0654,4586.8,4586.7,0.6948]
[1757697511338,0.4848,4586.8,4586.7,0.6948]
[1757697511638,0.9752,4586.8,4586.7,0.6948]
[1757697512045,0.9098,4586.8,4586.7,0.1913]
[1757697512240,0.9098,4586.8,4586.7,0.4978]
[1757697513143,0.9098,4586.8,4586.7,0.6948]
[1757697513945,0.6231,4586.8,4586.7,0.6948]
[1757697514339,0.2177,4586.8,4586.7,0.6948]
[1757697515537,0.2177,4586.8,4586.7,4.91282]
[1757697515741,0.29908671,4587.9,4586.7,4.3883]
[1757697515941,0.70448671,4587.9,4587.8,0.1913]
[1757697516145,1.2717708,4587.9,4587.8,0.6948]
[1757697516342,1.2717708,4587.9,4587.8,0.3883]
[1757697516543,1.2717708,4587.9,4587.0,0.1256]
[1757697516544,0.1197,4587.5,4587.4,0.3065]
[1757697516743,0.8118,4587.5,4587.0,0.3065]
[1757697516944,0.6921,4587.1,4587.0,0.4978]
[1757697517145,0.6921,4587.1,4587.0,0.1913]
[1757697517344,0.6921,4587.1,4587.0,0.6948]
[1757697517550,1.25920646,4587.1,4587.0,0.3883]
[1757697517747,1.25920646,4587.1,4586.6,0.3065]
[1757697518047,0.2867,4586.6,4585.5,0.3065]
[1757697518243,0.2867,4585.5,4585.4,0.1913]
[1757697518446,0.2867,4585.5,4585.4,0.6948]
[1757697518751,0.2017,4585.5,4585.4,0.6948]
[1757697518941,0.1197,4586.5,4585.6,0.3065]
[1757697519146,0.56742008,4586.4,4585.6,0.3883]
[1757697519353,0.56742008,4586.3,4586.2,0.6948]
[1757697519850,1.1760781,4587.6,4586.2,0.6948]
[1757697520040,1.1760781,4587.6,4586.0,0.1256]
[1757697520041,0.56744497,4587.5,4586.3,0.3065]
[1757697520241,0.56744497,4587.4,4586.4,0.3065]
[1757697520448,0.56744497,4587.3,4586.6,0.3065]
[1757697520645,0.97284497,4587.2,4587.1,0.4978]
[1757697521548,1.22564497,4587.2,4587.1,0.3065]
[1757697521750,1.22564497,4587.2,4586.6,0.3065]
[1757697521946,0.4054,4586.7,4586.6,0.3065]